Workbook

Sheet Basics_PS
B3: =ROUND(RAND()*(9-(2))+(2),0)*10 -> 90 | D3: x | F3: = | G3: =B3*M3 -> 2133 | M3: =ROUND(RAND()*(30-(11))+(11),1) -> 23.7 | AA3: =AB3/100*AF3 -> 75 | AB3: =ROUND(RAND()*(19-(1))+(1),0)*5 -> 15 | AD3: % | AE3: of | AF3: =ROUND(RAND()*(40-(11))+(11),0)*20 -> 500 | AH3: =
O10: Basic Calculations
C15: ÷ | E15: =ROUND(RAND()*(9-(2))+(2),0)*10 -> 40 | F15: = | G15: =ROUND(RAND()*(50-(11))+(11),0) -> 28 | M15: =G15*E15 -> 1120 | N15: Find the missing numbers | AA15: =ROUND(RAND()*(80-(11))+(11),0)*AC16 -> 200 | AC15: =ROUND(RAND()*(8-(2))+(2),0) -> 3 | AD15: of | AH15: = | AI15: =AC15*AA15/AC16 -> 150
AC16: =AC15+1 -> 4

Sheet Integers_PS
D3: =ROUND(RAND()*((-3)-(-30))+(-30),0) -> -13 | E3: + | G3: = | H3: =D3+N3 -> -43 | N3: =ROUND(RAND()*((-3)-(-30))+(-30),0) -> -30 | AB3: =ROUND(RAND()*((9)-(2))+(2),0)*10 -> 80 | AH3: =ROUND(RAND()*((-2)-(-9))+(-9),0)*10 -> -60 | AI3: - | AL3: = | AM3: =AH3-AB3 -> -140
P10: Find the missing numbers
P11: Think THERMOMETER !
D15: + | F15: =ROUND(RAND()*(20-(-20))+(-20),0) -> 9 | G15: = | H15: =N15+F15 -> 13 | N15: =ROUND(RAND()*(20-(-20))+(-20),0) -> 4 | AB15: =ROUND(RAND()*(90-(9))+(9),0) -> 22 | AH15: =ROUND(RAND()*(-9-(-90))+(-90),0) -> -61 | AI15: - | AL15: = | AM15: =AH15-AB15 -> -83

Sheet Equation_PS
D3: =CHAR(RAND()*(122-113)+113) -> w | E3: - | G3: = | H3: =S12-N3 -> -4 | N3: =ROUND(RAND()*(19-(5))+(5),0) -> 12 | AB3: =AH3*S12 -> 160 | AH3: =ROUND(RAND()*((9)-(2))+(2),0)*10 -> 20 | AI3: =CHAR(RAND()*(105-97)+97) -> h | AJ3: =
P10: The solution to each
Q11: equation is
S12: =ROUND(RAND()*(12-2)+2,0) -> 8
D15: =CHAR(RAND()*(122-113)+113) -> q | E15: + | F15: =ROUND(RAND()*(10-(2))+(2),0) -> 8 | G15: = | H15: =N15*S12+F15 -> 136 | N15: =ROUND(RAND()*(19-(5))+(5),0) -> 16 | O15: Find the missing numbers | AB15: =ROUND(RAND()*(10-(1))+(1),0) -> 5 | AH15: =ROUND(RAND()*(3-(2))+(2),0) -> 2 | AI15: =CHAR(RAND()*(105-97)+97) -> g | AJ15: - | AL15: = | AM15: =AH15*S12-AB15 -> 11

Sheet Bearings_PS
I3: What is my bearings
M5: O
K10: =ROUND(RAND()*(72-1)+1,0)*5 -> 120
K11: =360-K10 -> 240
L12: =IF(K10<100,0,"") -> 
K13: =CONCATENATE(L12,K10) -> 120

Sheet Scales_PS
I3: What is my bearings
M5: O
K10: =ROUND(RAND()*(72-1)+1,0)*5 -> 120
K11: =360-K10 -> 240
L12: =IF(K10<100,0,"") -> 
K13: =CONCATENATE(L12,K10) -> 120

Sheet Perimeter_PS
E2: What's my Perimeter ? | O2: =CONCATENATE(O8,P8) -> 13m | AP2: =ROUND(RAND()*(30-15)+15,0) -> 25 | AQ2: cm | AR2: =2*AP2+2*AP3 -> 70 | AU2: ="What's my breadth ? if Perimeter = "&AR2&"cm" -> What's my breadth ? if Perimeter = 70cm | BE2: b cm
AP3: =ROUND(RAND()*(14-6)+6,0) -> 10 | AQ3: cm
E7: =CONCATENATE(O7,P7) -> 23m | O7: =ROUND(RAND()*(30-15)+15,0) -> 23 | P7: m | Q7: =2*O7+2*O8 -> 72 | AU7: =CONCATENATE(AP2,AQ2) -> 25cm
O8: =ROUND(RAND()*(14-6)+6,0) -> 13 | P8: m | W8: Do you know your Perimeter ?
C9: Perimeter = | N9: m | AT9: Breadth = | BE9: cm
C13: Perimeter = | P13: m | AT13: Length = | BE13: cm
E16: What's my Perimeter ? | O16: =CONCATENATE(O22,P22) -> 19.5m | AP16: =ROUND(RAND()*(30-15)+15,1) -> 29.8 | AQ16: cm | AR16: =2*AP16+2*AP17 -> 67.8 | AU16: ="What's my length ? if Perimeter = "&AR16&"cm" -> What's my length ? if Perimeter = 67.8cm | BE16: =CONCATENATE(AP17,AQ17) -> 4.1cm
AP17: =ROUND(RAND()*(9-3)+3,1) -> 4.1 | AQ17: cm
E21: =CONCATENATE(O21,P21) -> 40.4m | O21: =ROUND(RAND()*(60-31)+31,1) -> 40.4 | P21: m | Q21: =2*O21+2*O22 -> 119.8 | AU21: L cm
O22: =ROUND(RAND()*(25-15)+15,1) -> 19.5 | P22: m

Sheet Area_PS
E2: What's my Area ? | O2: =CONCATENATE(O8,P8) -> 49m | AP2: =ROUND(RAND()*(9-2)+2,0)*10 -> 80 | AQ2: cm | AR2: =AP2*AP3 -> 320 | AU2: ="What's my breadth ? If Area = "&AR2&" sq cm" -> What's my breadth ? If Area = 320 sq cm | BE2: b cm
AP3: =ROUND(RAND()*(9-3)+3,0) -> 4 | AQ3: cm
E7: =CONCATENATE(O7,P7) -> 40m | O7: =ROUND(RAND()*(9-2)+2,0)*10 -> 40 | P7: m | Q7: =O7*O8 -> 1960 | AU7: =CONCATENATE(AP2,AQ2) -> 80cm
O8: =ROUND(RAND()*(50-11)+11,0) -> 49 | P8: m | W8: Do you know your Area ?
C9: Area = | P9: m2 | AT9: Breadth = | BE9: cm
C13: Area = | P13: m2 | AT13: Length = | BE13: cm
O16: =CONCATENATE(O22,P22) -> 32m | AP16: =ROUND(RAND()*(30-15)+15,1) -> 27.8 | AQ16: cm | AR16: =AP16*AP17 -> 111.2 | AU16: ="What's my length ? If Area = "&AR16&" sq cm" -> What's my length ? If Area = 111.2 sq cm | BE16: =CONCATENATE(AP17,AQ17) -> 4cm
AP17: =ROUND(RAND()*(9-3)+3,0) -> 4 | AQ17: cm
E21: =CONCATENATE(O21,P21) -> 40m | O21: =ROUND(RAND()*(9-2)+2,0)*10 -> 40 | P21: m | Q21: =0.5*O21*O22 -> 640 | AU21: L cm
O22: =ROUND(RAND()*(50-11)+11,0) -> 32 | P22: m

Sheet Basic_Cal
C2: Basic Calculations 1 | L2: Basic Calculations 1 | U2: Basic Calculations 2 | AD2: Basic Calculations 2 | AM2: Basic Calculations 3 | AV2: Basic Calculations 3
C4: 1) | E4: =ROUND(RAND()*(10-(3))+(3),0) -> 9 | F4: x | G4: =ROUND(RAND()*(30-(11))+(11),1) -> 26.9 | L4: 1) | N4: =E4*G4 -> 242.1 | U4: 1) | W4: =ROUND(RAND()*(10-(3))+(3),0) -> 5 | X4: x | Y4: =ROUND(RAND()*(30-(15))+(15),1) -> 15.8 | AD4: 1) | AF4: =W4*Y4 -> 79 | AM4: 1) | AO4: =ROUND(RAND()*(10-(3))+(3),0) -> 5 | AP4: x | AQ4: =ROUND(RAND()*(30-(15))+(15),1) -> 26.2 | AV4: 1) | AX4: =AO4*AQ4 -> 131
C7: 2) | D7: =ROUND(RAND()*(30-(11))+(11),1)*G7 -> 82 | F7: ÷ | G7: =ROUND(RAND()*(10-(3))+(3),0) -> 5 | L7: 2) | N7: =D7/G7 -> 16.4 | U7: 2) | V7: =ROUND(RAND()*(30-(11))+(11),1)*Y7 -> 192.6 | X7: ÷ | Y7: =ROUND(RAND()*(10-(3))+(3),0) -> 9 | AD7: 2) | AF7: =V7/Y7 -> 21.4 | AM7: 2) | AN7: =ROUND(RAND()*(30-(11))+(11),1)*AQ7 -> 119.6 | AP7: ÷ | AQ7: =ROUND(RAND()*(10-(3))+(3),0) -> 4 | AV7: 2) | AX7: =AN7/AQ7 -> 29.9
C10: 3) | E10: =ROUND(RAND()*(9-(2))+(2),0)*10 -> 50 | F10: x | G10: =ROUND(RAND()*(30-(11))+(11),1) -> 13.5 | L10: 3) | N10: =E10*G10 -> 675 | U10: 3) | W10: =ROUND(RAND()*(9-(2))+(2),0)*10 -> 70 | X10: x | Y10: =ROUND(RAND()*(30-(11))+(11),2) -> 21.31 | AD10: 3) | AF10: =W10*Y10 -> 1491.7 | AM10: 3) | AO10: =ROUND(RAND()*(9-(2))+(2),0)*10 -> 60 | AP10: x | AQ10: =ROUND(RAND()*(30-(11))+(11),2) -> 23.81 | AV10: 3) | AX10: =AO10*AQ10 -> 1428.6
C13: 4) | D13: =G13*N13 -> 2700 | F13: ÷ | G13: =ROUND(RAND()*(9-(3))+(3),0)*10 -> 60 | L13: 4) | N13: =ROUND(RAND()*(50-(11))+(11),0) -> 45 | U13: 4) | V13: =Y13*AF13 -> 1924 | X13: ÷ | Y13: =ROUND(RAND()*(9-(3))+(3),0)*10 -> 40 | AD13: 4) | AF13: =ROUND(RAND()*(50-(11))+(11),1) -> 48.1 | AM13: 4) | AN13: =AQ13*AX13 -> 3164 | AP13: ÷ | AQ13: =ROUND(RAND()*(9-(3))+(3),0)*10 -> 70 | AV13: 4) | AX13: =ROUND(RAND()*(50-(11))+(11),1) -> 45.2
C16: 5) | D16: =ROUND(RAND()*(19-(1))+(1),0)*5 -> 20 | E16: % | F16: of | G16: =ROUND(RAND()*(40-(11))+(11),0)*20 -> 580 | L16: 5) | N16: =D16/100*G16 -> 116 | U16: 5) | V16: =ROUND(RAND()*(19-(1))+(1),0)*5 -> 70 | W16: % | X16: of | Y16: =ROUND(RAND()*(40-(11))+(11),0)*20 -> 680 | AD16: 5) | AF16: =V16/100*Y16 -> 476 | AM16: 5) | AN16: =ROUND(RAND()*(19-(1))+(1),0)*5 -> 15 | AO16: % | AP16: of | AQ16: =ROUND(RAND()*(40-(11))+(11),0)*20 -> 420 | AV16: 5) | AX16: =AN16/100*AQ16 -> 63
C19: 6) | E19: =ROUND(RAND()*(8-(2))+(2),0) -> 6 | F19: of | G19: =ROUND(RAND()*(80-(11))+(11),1)*E20 -> 352.8 | L19: 6) | N19: =E19*G19/E20 -> 302.4 | U19: 6) | W19: =ROUND(RAND()*(8-(2))+(2),0) -> 3 | X19: of | Y19: =ROUND(RAND()*(80-(11))+(11),1)*W20 -> 110.8 | AD19: 6) | AF19: =W19*Y19/W20 -> 83.1 | AM19: 6) | AO19: =ROUND(RAND()*(8-(2))+(2),0) -> 4 | AP19: of | AQ19: =ROUND(RAND()*(80-(11))+(11),1)*AO20 -> 158 | AV19: 6) | AX19: =AO19*AQ19/AO20 -> 126.4
E20: =E19+1 -> 7 | W20: =W19+1 -> 4 | AO20: =AO19+1 -> 5
C23: Basic Calculations 4 | L23: Basic Calculations 4 | U23: Basic Calculations 5 | AD23: Basic Calculations 5 | AM23: Basic Calculations 6 | AV23: Basic Calculations 6
C25: 1) | E25: =ROUND(RAND()*(10-(3))+(3),0) -> 8 | F25: x | G25: =ROUND(RAND()*(30-(11))+(11),1) -> 22.9 | L25: 1) | N25: =E25*G25 -> 183.2 | U25: 1) | W25: =ROUND(RAND()*(10-(3))+(3),0) -> 5 | X25: x | Y25: =ROUND(RAND()*(30-(15))+(15),1) -> 27.1 | AD25: 1) | AF25: =W25*Y25 -> 135.5 | AM25: 1) | AO25: =ROUND(RAND()*(10-(3))+(3),0) -> 8 | AP25: x | AQ25: =ROUND(RAND()*(30-(15))+(15),1) -> 22.5 | AV25: 1) | AX25: =AO25*AQ25 -> 180
C28: 2) | D28: =ROUND(RAND()*(30-(11))+(11),1)*G28 -> 129.5 | F28: ÷ | G28: =ROUND(RAND()*(10-(3))+(3),0) -> 7 | L28: 2) | N28: =D28/G28 -> 18.5 | U28: 2) | V28: =ROUND(RAND()*(30-(11))+(11),1)*Y28 -> 161 | X28: ÷ | Y28: =ROUND(RAND()*(10-(3))+(3),0) -> 10 | AD28: 2) | AF28: =V28/Y28 -> 16.1 | AM28: 2) | AN28: =ROUND(RAND()*(30-(11))+(11),1)*AQ28 -> 96.5 | AP28: ÷ | AQ28: =ROUND(RAND()*(10-(3))+(3),0) -> 5 | AV28: 2) | AX28: =AN28/AQ28 -> 19.3
C31: 3) | E31: =ROUND(RAND()*(9-(2))+(2),0)*10 -> 80 | F31: x | G31: =ROUND(RAND()*(30-(11))+(11),1) -> 27.4 | L31: 3) | N31: =E31*G31 -> 2192 | U31: 3) | W31: =ROUND(RAND()*(9-(2))+(2),0)*10 -> 40 | X31: x | Y31: =ROUND(RAND()*(30-(11))+(11),2) -> 19.07 | AD31: 3) | AF31: =W31*Y31 -> 762.8 | AM31: 3) | AO31: =ROUND(RAND()*(9-(2))+(2),0)*10 -> 70 | AP31: x | AQ31: =ROUND(RAND()*(30-(11))+(11),2) -> 25.16 | AV31: 3) | AX31: =AO31*AQ31 -> 1761.2
C34: 4) | D34: =G34*N34 -> 1170 | F34: ÷ | G34: =ROUND(RAND()*(9-(3))+(3),0)*10 -> 30 | L34: 4) | N34: =ROUND(RAND()*(50-(11))+(11),0) -> 39 | U34: 4) | V34: =Y34*AF34 -> 2664 | X34: ÷ | Y34: =ROUND(RAND()*(9-(3))+(3),0)*10 -> 60 | AD34: 4) | AF34: =ROUND(RAND()*(50-(11))+(11),1) -> 44.4 | AM34: 4) | AN34: =AQ34*AX34 -> 3600 | AP34: ÷ | AQ34: =ROUND(RAND()*(9-(3))+(3),0)*10 -> 80 | AV34: 4) | AX34: =ROUND(RAND()*(50-(11))+(11),1) -> 45
C37: 5) | D37: =ROUND(RAND()*(19-(1))+(1),0)*5 -> 30 | E37: % | F37: of | G37: =ROUND(RAND()*(40-(11))+(11),0)*20 -> 300 | L37: 5) | N37: =D37/100*G37 -> 90 | U37: 5) | V37: =ROUND(RAND()*(19-(1))+(1),0)*5 -> 50 | W37: % | X37: of | Y37: =ROUND(RAND()*(40-(11))+(11),0)*20 -> 560 | AD37: 5) | AF37: =V37/100*Y37 -> 280 | AM37: 5) | AN37: =ROUND(RAND()*(19-(1))+(1),0)*5 -> 35 | AO37: % | AP37: of | AQ37: =ROUND(RAND()*(40-(11))+(11),0)*20 -> 560 | AV37: 5) | AX37: =AN37/100*AQ37 -> 196
C40: 6) | E40: =ROUND(RAND()*(8-(2))+(2),0) -> 6 | F40: of | G40: =ROUND(RAND()*(80-(11))+(11),1)*E41 -> 142.8 | L40: 6) | N40: =E40*G40/E41 -> 122.4 | U40: 6) | W40: =ROUND(RAND()*(8-(2))+(2),0) -> 5 | X40: of | Y40: =ROUND(RAND()*(80-(11))+(11),1)*W41 -> 322.2 | AD40: 6) | AF40: =W40*Y40/W41 -> 268.5 | AM40: 6) | AO40: =ROUND(RAND()*(8-(2))+(2),0) -> 7 | AP40: of | AQ40: =ROUND(RAND()*(80-(11))+(11),1)*AO41 -> 487.2 | AV40: 6) | AX40: =AO40*AQ40/AO41 -> 426.3
E41: =E40+1 -> 7 | W41: =W40+1 -> 6 | AO41: =AO40+1 -> 8

Sheet Integers
C2: Integers 1 | L2: Integers 1 | U2: Integers 2 | AD2: Integers 2 | AM2: Integers 3 | AV2: Integers 3
C4: 1) | E4: =ROUND(RAND()*(-5-(-20))+(-20),0) -> -19 | F4: + | G4: =ROUND(RAND()*(-30-(-11))+(-11),0) -> -25 | L4: 1) | N4: =E4+G4 -> -44 | U4: 1) | W4: =ROUND(RAND()*(-5-(-20))+(-20),0) -> -16 | X4: + | Y4: =ROUND(RAND()*(-30-(-11))+(-11),0) -> -22 | AD4: 1) | AF4: =W4+Y4 -> -38 | AM4: 1) | AO4: =ROUND(RAND()*(-5-(-20))+(-20),0) -> -9 | AP4: + | AQ4: =ROUND(RAND()*(-30-(-11))+(-11),0) -> -19 | AV4: 1) | AX4: =AO4+AQ4 -> -28
C7: 2) | E7: =ROUND(RAND()*(25-(8))+(8),0) -> 20 | F7: + | G7: =ROUND(RAND()*(-30-(-11))+(-11),0) -> -16 | L7: 2) | N7: =E7+G7 -> 4 | U7: 2) | W7: =ROUND(RAND()*(25-(8))+(8),0) -> 19 | X7: + | Y7: =ROUND(RAND()*(-30-(-11))+(-11),0) -> -28 | AD7: 2) | AF7: =W7+Y7 -> -9 | AM7: 2) | AO7: =ROUND(RAND()*(25-(8))+(8),0) -> 13 | AP7: + | AQ7: =ROUND(RAND()*(-30-(-11))+(-11),0) -> -19 | AV7: 2) | AX7: =AO7+AQ7 -> -6
C9: Find the difference between | U9: Find the difference between | AM9: Find the difference between
C10: 3) | E10: =ROUND(RAND()*(25-(8))+(8),0) -> 12 | F10: and | H10: =ROUND(RAND()*(-30-(-11))+(-11),0) -> -18 | L10: 3) | N10: =E10-H10 -> 30 | U10: 3) | W10: =ROUND(RAND()*(25-(8))+(8),0) -> 21 | X10: and | Z10: =ROUND(RAND()*(-30-(-11))+(-11),0) -> -30 | AD10: 3) | AF10: =W10-Z10 -> 51 | AM10: 3) | AO10: =ROUND(RAND()*(25-(8))+(8),0) -> 14 | AP10: and | AR10: =ROUND(RAND()*(-30-(-11))+(-11),0) -> -11 | AV10: 3) | AX10: =AO10-AR10 -> 25
C12: Find the difference between | U12: Find the difference between | AM12: Find the difference between
C13: 4) | E13: =ROUND(RAND()*((-25)-(-60))+(-60),0) -> -32 | F13: and | H13: =ROUND(RAND()*(60-(9))+(9),0) -> 50 | L13: 4) | N13: =H13-E13 -> 82 | U13: 4) | W13: =ROUND(RAND()*((-25)-(-60))+(-60),0) -> -42 | X13: and | Z13: =ROUND(RAND()*(60-(9))+(9),0) -> 58 | AD13: 4) | AF13: =Z13-W13 -> 100 | AM13: 4) | AO13: =ROUND(RAND()*((-25)-(-60))+(-60),0) -> -44 | AP13: and | AR13: =ROUND(RAND()*(60-(9))+(9),0) -> 20 | AV13: 4) | AX13: =AR13-AO13 -> 64
C16: 5) | E16: =ROUND(RAND()*(-5-(-20))+(-20),0) -> -11 | F16: - | G16: =ROUND(RAND()*(60-(7))+(7),0) -> 21 | L16: 5) | N16: =E16-G16 -> -32 | U16: 5) | W16: =ROUND(RAND()*(-5-(-20))+(-20),0) -> -12 | X16: - | Y16: =ROUND(RAND()*(60-(7))+(7),0) -> 50 | AD16: 5) | AF16: =W16-Y16 -> -62 | AM16: 5) | AO16: =ROUND(RAND()*(-5-(-20))+(-20),0) -> -7 | AP16: - | AQ16: =ROUND(RAND()*(60-(7))+(7),0) -> 17 | AV16: 5) | AX16: =AO16-AQ16 -> -24
C19: 6) | E19: =ROUND(RAND()*(-5-(-20))+(-20),0) -> -14 | F19: - | G19: =ROUND(RAND()*(60-(7))+(7),0) -> 22 | L19: 6) | N19: =E19-G19 -> -36 | U19: 6) | W19: =ROUND(RAND()*(-5-(-20))+(-20),0) -> -6 | X19: - | Y19: =ROUND(RAND()*(60-(7))+(7),0) -> 22 | AD19: 6) | AF19: =W19-Y19 -> -28 | AM19: 6) | AO19: =ROUND(RAND()*(-5-(-20))+(-20),0) -> -15 | AP19: - | AQ19: =ROUND(RAND()*(60-(7))+(7),0) -> 23 | AV19: 6) | AX19: =AO19-AQ19 -> -38
C23: Integers 4 | L23: Integers 4 | U23: Integers 5 | AD23: Integers 5 | AM23: Integers 6 | AV23: Integers 6
C25: 1) | E25: =ROUND(RAND()*(-5-(-20))+(-20),0) -> -16 | F25: + | G25: =ROUND(RAND()*(-30-(-11))+(-11),0) -> -29 | L25: 1) | N25: =E25+G25 -> -45 | U25: 1) | W25: =ROUND(RAND()*(-5-(-20))+(-20),0) -> -16 | X25: + | Y25: =ROUND(RAND()*(-30-(-11))+(-11),0) -> -25 | AD25: 1) | AF25: =W25+Y25 -> -41 | AM25: 1) | AO25: =ROUND(RAND()*(-5-(-20))+(-20),0) -> -5 | AP25: + | AQ25: =ROUND(RAND()*(-30-(-11))+(-11),0) -> -16 | AV25: 1) | AX25: =AO25+AQ25 -> -21
C28: 2) | E28: =ROUND(RAND()*(25-(8))+(8),0) -> 13 | F28: + | G28: =ROUND(RAND()*(-30-(-11))+(-11),0) -> -18 | L28: 2) | N28: =E28+G28 -> -5 | U28: 2) | W28: =ROUND(RAND()*(25-(8))+(8),0) -> 16 | X28: + | Y28: =ROUND(RAND()*(-30-(-11))+(-11),0) -> -12 | AD28: 2) | AF28: =W28+Y28 -> 4 | AM28: 2) | AO28: =ROUND(RAND()*(25-(8))+(8),0) -> 24 | AP28: + | AQ28: =ROUND(RAND()*(-30-(-11))+(-11),0) -> -29 | AV28: 2) | AX28: =AO28+AQ28 -> -5
C30: Find the difference between | U30: Find the difference between | AM30: Find the difference between
C31: 3) | E31: =ROUND(RAND()*(25-(8))+(8),0) -> 10 | F31: and | H31: =ROUND(RAND()*(-30-(-11))+(-11),0) -> -28 | L31: 3) | N31: =E31-H31 -> 38 | U31: 3) | W31: =ROUND(RAND()*(25-(8))+(8),0) -> 12 | X31: and | Z31: =ROUND(RAND()*(-30-(-11))+(-11),0) -> -27 | AD31: 3) | AF31: =W31-Z31 -> 39 | AM31: 3) | AO31: =ROUND(RAND()*(25-(8))+(8),0) -> 10 | AP31: and | AR31: =ROUND(RAND()*(-30-(-11))+(-11),0) -> -25 | AV31: 3) | AX31: =AO31-AR31 -> 35
C33: Find the difference between | U33: Find the difference between | AM33: Find the difference between
C34: 4) | E34: =ROUND(RAND()*((-25)-(-60))+(-60),0) -> -47 | F34: and | H34: =ROUND(RAND()*(60-(9))+(9),0) -> 31 | L34: 4) | N34: =H34-E34 -> 78 | U34: 4) | W34: =ROUND(RAND()*((-25)-(-60))+(-60),0) -> -52 | X34: and | Z34: =ROUND(RAND()*(60-(9))+(9),0) -> 35 | AD34: 4) | AF34: =Z34-W34 -> 87 | AM34: 4) | AO34: =ROUND(RAND()*((-25)-(-60))+(-60),0) -> -49 | AP34: and | AR34: =ROUND(RAND()*(60-(9))+(9),0) -> 24 | AV34: 4) | AX34: =AR34-AO34 -> 73
C37: 5) | E37: =ROUND(RAND()*(-5-(-20))+(-20),0) -> -10 | F37: - | G37: =ROUND(RAND()*(60-(7))+(7),0) -> 30 | L37: 5) | N37: =E37-G37 -> -40 | U37: 5) | W37: =ROUND(RAND()*(-5-(-20))+(-20),0) -> -18 | X37: - | Y37: =ROUND(RAND()*(60-(7))+(7),0) -> 58 | AD37: 5) | AF37: =W37-Y37 -> -76 | AM37: 5) | AO37: =ROUND(RAND()*(-5-(-20))+(-20),0) -> -18 | AP37: - | AQ37: =ROUND(RAND()*(60-(7))+(7),0) -> 53 | AV37: 5) | AX37: =AO37-AQ37 -> -71
C40: 6) | E40: =ROUND(RAND()*(-5-(-20))+(-20),0) -> -11 | F40: - | G40: =ROUND(RAND()*(60-(7))+(7),0) -> 27 | L40: 6) | N40: =E40-G40 -> -38 | U40: 6) | W40: =ROUND(RAND()*(-5-(-20))+(-20),0) -> -15 | X40: - | Y40: =ROUND(RAND()*(60-(7))+(7),0) -> 49 | AD40: 6) | AF40: =W40-Y40 -> -64 | AM40: 6) | AO40: =ROUND(RAND()*(-5-(-20))+(-20),0) -> -7 | AP40: - | AQ40: =ROUND(RAND()*(60-(7))+(7),0) -> 23 | AV40: 6) | AX40: =AO40-AQ40 -> -30

Sheet Solving_Equations
C2: Solving Equations 1 | L2: Solving Equations 1 | U2: Solving Equations 2 | AD2: Solving Equations 2 | AM2: Solving Equations 3 | AV2: Solving Equations 3
C4: 1) | E4: =CHAR(RAND()*(122-113)+113) -> q | F4: + | G4: =ROUND(RAND()*(30-(5))+(5),0) -> 26 | H4: = | I4: =N4+G4 -> 33 | L4: 1) | N4: =ROUND(RAND()*(10-(1))+(1),0) -> 7 | U4: 1) | W4: =CHAR(RAND()*(122-113)+113) -> q | X4: + | Y4: =ROUND(RAND()*(30-(5))+(5),0) -> 12 | Z4: = | AA4: =AF4+Y4 -> 14 | AD4: 1) | AF4: =ROUND(RAND()*(10-(1))+(1),0) -> 2 | AM4: 1) | AO4: =CHAR(RAND()*(122-113)+113) -> v | AP4: + | AQ4: =ROUND(RAND()*(30-(5))+(5),0) -> 22 | AR4: = | AS4: =AX4+AQ4 -> 28 | AV4: 1) | AX4: =ROUND(RAND()*(10-(1))+(1),0) -> 6
C7: 2) | E7: =CHAR(RAND()*(122-113)+113) -> y | F7: - | G7: =ROUND(RAND()*(19-(5))+(5),0) -> 11 | H7: = | I7: =N7-G7 -> -7 | L7: 2) | N7: =ROUND(RAND()*(10-(1))+(1),0) -> 4 | U7: 2) | W7: =CHAR(RAND()*(122-113)+113) -> y | X7: - | Y7: =ROUND(RAND()*(19-(5))+(5),0) -> 7 | Z7: = | AA7: =AF7-Y7 -> -3 | AD7: 2) | AF7: =ROUND(RAND()*(10-(1))+(1),0) -> 4 | AM7: 2) | AO7: =CHAR(RAND()*(122-113)+113) -> y | AP7: - | AQ7: =ROUND(RAND()*(19-(5))+(5),0) -> 7 | AR7: = | AS7: =AX7-AQ7 -> -2 | AV7: 2) | AX7: =ROUND(RAND()*(10-(1))+(1),0) -> 5
C10: 3) | F10: =ROUND(RAND()*((10)-(2))+(2),0) -> 7 | G10: =CHAR(RAND()*(105-97)+97) -> f | H10: = | I10: =F10*N10 -> 133 | L10: 3) | N10: =ROUND(RAND()*(20-(1))+(1),0) -> 19 | U10: 3) | X10: =ROUND(RAND()*((10)-(2))+(2),0) -> 4 | Y10: =CHAR(RAND()*(105-97)+97) -> e | Z10: = | AA10: =X10*AF10 -> 52 | AD10: 3) | AF10: =ROUND(RAND()*(20-(1))+(1),0) -> 13 | AM10: 3) | AP10: =ROUND(RAND()*((10)-(2))+(2),0) -> 3 | AQ10: =CHAR(RAND()*(105-97)+97) -> b | AR10: = | AS10: =AP10*AX10 -> 51 | AV10: 3) | AX10: =ROUND(RAND()*(20-(1))+(1),0) -> 17
C13: 4) | F13: =ROUND(RAND()*((9)-(2))+(2),0)*10 -> 30 | G13: =CHAR(RAND()*(105-97)+97) -> c | H13: = | I13: =F13*N13 -> 210 | L13: 4) | N13: =ROUND(RAND()*(10-(1))+(1),0) -> 7 | U13: 4) | X13: =ROUND(RAND()*((9)-(2))+(2),0)*10 -> 90 | Y13: =CHAR(RAND()*(105-97)+97) -> f | Z13: = | AA13: =X13*AF13 -> 180 | AD13: 4) | AF13: =ROUND(RAND()*(10-(1))+(1),0) -> 2 | AM13: 4) | AP13: =ROUND(RAND()*((9)-(2))+(2),0)*10 -> 80 | AQ13: =CHAR(RAND()*(105-97)+97) -> h | AR13: = | AS13: =AP13*AX13 -> 640 | AV13: 4) | AX13: =ROUND(RAND()*(10-(1))+(1),0) -> 8
C16: 5) | D16: =ROUND(RAND()*(5-(2))+(2),0) -> 5 | E16: =CHAR(RAND()*(122-113)+113) -> w | F16: + | G16: =ROUND(RAND()*(10-(2))+(2),0) -> 7 | H16: = | I16: =D16*N16+G16 -> 97 | L16: 5) | N16: =ROUND(RAND()*(20-(1))+(1),0) -> 18 | U16: 5) | V16: =ROUND(RAND()*(5-(2))+(2),0) -> 3 | W16: =CHAR(RAND()*(122-113)+113) -> u | X16: + | Y16: =ROUND(RAND()*(10-(2))+(2),0) -> 7 | Z16: = | AA16: =V16*AF16+Y16 -> 49 | AD16: 5) | AF16: =ROUND(RAND()*(20-(1))+(1),0) -> 14 | AM16: 5) | AN16: =ROUND(RAND()*(5-(2))+(2),0) -> 4 | AO16: =CHAR(RAND()*(122-113)+113) -> w | AP16: + | AQ16: =ROUND(RAND()*(10-(2))+(2),0) -> 6 | AR16: = | AS16: =AN16*AX16+AQ16 -> 22 | AV16: 5) | AX16: =ROUND(RAND()*(20-(1))+(1),0) -> 4
C19: 6) | D19: =ROUND(RAND()*(3-(2))+(2),0) -> 3 | E19: =CHAR(RAND()*(105-97)+97) -> g | F19: - | G19: =ROUND(RAND()*(4-(1))+(1),0) -> 3 | H19: = | I19: =D19*N19-G19 -> 39 | L19: 6) | N19: =ROUND(RAND()*(20-(1))+(1),0) -> 14 | U19: 6) | V19: =ROUND(RAND()*(3-(2))+(2),0) -> 3 | W19: =CHAR(RAND()*(105-97)+97) -> b | X19: - | Y19: =ROUND(RAND()*(4-(1))+(1),0) -> 2 | Z19: = | AA19: =V19*AF19-Y19 -> 40 | AD19: 6) | AF19: =ROUND(RAND()*(20-(1))+(1),0) -> 14 | AM19: 6) | AN19: =ROUND(RAND()*(3-(2))+(2),0) -> 2 | AO19: =CHAR(RAND()*(105-97)+97) -> g | AP19: - | AQ19: =ROUND(RAND()*(4-(1))+(1),0) -> 1 | AR19: = | AS19: =AN19*AX19-AQ19 -> 31 | AV19: 6) | AX19: =ROUND(RAND()*(20-(1))+(1),0) -> 16
C23: Solving Equations 4 | L23: Solving Equations 4 | U23: Solving Equations 5 | AD23: Solving Equations 5 | AM23: Solving Equations 6 | AV23: Solving Equations 6
C25: 1) | E25: =CHAR(RAND()*(122-113)+113) -> v | F25: + | G25: =ROUND(RAND()*(30-(5))+(5),0) -> 21 | H25: = | I25: =N25+G25 -> 25 | L25: 1) | N25: =ROUND(RAND()*(10-(1))+(1),0) -> 4 | U25: 1) | W25: =CHAR(RAND()*(122-113)+113) -> v | X25: + | Y25: =ROUND(RAND()*(30-(5))+(5),0) -> 16 | Z25: = | AA25: =AF25+Y25 -> 21 | AD25: 1) | AF25: =ROUND(RAND()*(10-(1))+(1),0) -> 5 | AM25: 1) | AO25: =CHAR(RAND()*(122-113)+113) -> y | AP25: + | AQ25: =ROUND(RAND()*(30-(5))+(5),0) -> 27 | AR25: = | AS25: =AX25+AQ25 -> 35 | AV25: 1) | AX25: =ROUND(RAND()*(10-(1))+(1),0) -> 8
C28: 2) | E28: =CHAR(RAND()*(122-113)+113) -> u | F28: - | G28: =ROUND(RAND()*(19-(5))+(5),0) -> 11 | H28: = | I28: =N28-G28 -> -3 | L28: 2) | N28: =ROUND(RAND()*(10-(1))+(1),0) -> 8 | U28: 2) | W28: =CHAR(RAND()*(122-113)+113) -> t | X28: - | Y28: =ROUND(RAND()*(19-(5))+(5),0) -> 17 | Z28: = | AA28: =AF28-Y28 -> -14 | AD28: 2) | AF28: =ROUND(RAND()*(10-(1))+(1),0) -> 3 | AM28: 2) | AO28: =CHAR(RAND()*(122-113)+113) -> w | AP28: - | AQ28: =ROUND(RAND()*(19-(5))+(5),0) -> 18 | AR28: = | AS28: =AX28-AQ28 -> -11 | AV28: 2) | AX28: =ROUND(RAND()*(10-(1))+(1),0) -> 7
C31: 3) | F31: =ROUND(RAND()*((10)-(2))+(2),0) -> 5 | G31: =CHAR(RAND()*(105-97)+97) -> b | H31: = | I31: =F31*N31 -> 60 | L31: 3) | N31: =ROUND(RAND()*(20-(1))+(1),0) -> 12 | U31: 3) | X31: =ROUND(RAND()*((10)-(2))+(2),0) -> 8 | Y31: =CHAR(RAND()*(105-97)+97) -> c | Z31: = | AA31: =X31*AF31 -> 96 | AD31: 3) | AF31: =ROUND(RAND()*(20-(1))+(1),0) -> 12 | AM31: 3) | AP31: =ROUND(RAND()*((10)-(2))+(2),0) -> 4 | AQ31: =CHAR(RAND()*(105-97)+97) -> c | AR31: = | AS31: =AP31*AX31 -> 36 | AV31: 3) | AX31: =ROUND(RAND()*(20-(1))+(1),0) -> 9
C34: 4) | F34: =ROUND(RAND()*((9)-(2))+(2),0)*10 -> 30 | G34: =CHAR(RAND()*(105-97)+97) -> e | H34: = | I34: =F34*N34 -> 210 | L34: 4) | N34: =ROUND(RAND()*(10-(1))+(1),0) -> 7 | U34: 4) | X34: =ROUND(RAND()*((9)-(2))+(2),0)*10 -> 20 | Y34: =CHAR(RAND()*(105-97)+97) -> b | Z34: = | AA34: =X34*AF34 -> 100 | AD34: 4) | AF34: =ROUND(RAND()*(10-(1))+(1),0) -> 5 | AM34: 4) | AP34: =ROUND(RAND()*((9)-(2))+(2),0)*10 -> 60 | AQ34: =CHAR(RAND()*(105-97)+97) -> e | AR34: = | AS34: =AP34*AX34 -> 420 | AV34: 4) | AX34: =ROUND(RAND()*(10-(1))+(1),0) -> 7
C37: 5) | D37: =ROUND(RAND()*(5-(2))+(2),0) -> 5 | E37: =CHAR(RAND()*(122-113)+113) -> t | F37: + | G37: =ROUND(RAND()*(10-(2))+(2),0) -> 5 | H37: = | I37: =D37*N37+G37 -> 105 | L37: 5) | N37: =ROUND(RAND()*(20-(1))+(1),0) -> 20 | U37: 5) | V37: =ROUND(RAND()*(5-(2))+(2),0) -> 3 | W37: =CHAR(RAND()*(122-113)+113) -> u | X37: + | Y37: =ROUND(RAND()*(10-(2))+(2),0) -> 5 | Z37: = | AA37: =V37*AF37+Y37 -> 20 | AD37: 5) | AF37: =ROUND(RAND()*(20-(1))+(1),0) -> 5 | AM37: 5) | AN37: =ROUND(RAND()*(5-(2))+(2),0) -> 5 | AO37: =CHAR(RAND()*(122-113)+113) -> y | AP37: + | AQ37: =ROUND(RAND()*(10-(2))+(2),0) -> 6 | AR37: = | AS37: =AN37*AX37+AQ37 -> 26 | AV37: 5) | AX37: =ROUND(RAND()*(20-(1))+(1),0) -> 4
C40: 6) | D40: =ROUND(RAND()*(3-(2))+(2),0) -> 3 | E40: =CHAR(RAND()*(105-97)+97) -> h | F40: - | G40: =ROUND(RAND()*(4-(1))+(1),0) -> 3 | H40: = | I40: =D40*N40-G40 -> 54 | L40: 6) | N40: =ROUND(RAND()*(20-(1))+(1),0) -> 19 | U40: 6) | V40: =ROUND(RAND()*(3-(2))+(2),0) -> 2 | W40: =CHAR(RAND()*(105-97)+97) -> e | X40: - | Y40: =ROUND(RAND()*(4-(1))+(1),0) -> 1 | Z40: = | AA40: =V40*AF40-Y40 -> 33 | AD40: 6) | AF40: =ROUND(RAND()*(20-(1))+(1),0) -> 17 | AM40: 6) | AN40: =ROUND(RAND()*(3-(2))+(2),0) -> 3 | AO40: =CHAR(RAND()*(105-97)+97) -> f | AP40: - | AQ40: =ROUND(RAND()*(4-(1))+(1),0) -> 1 | AR40: = | AS40: =AN40*AX40-AQ40 -> 41 | AV40: 6) | AX40: =ROUND(RAND()*(20-(1))+(1),0) -> 14

Sheet Length
C2: Conversions 1 | L2: Conversions 1 | U2: Conversions 2 | AD2: Conversions 2 | AM2: Conversions 3 | AV2: Conversions 3
C3: metres to centimetres | U3: metres to centimetres | AM3: metres to centimetres
C4: 1) | E4: =ROUND(RAND()*(900-(0.1))+(0.1),1) -> 405.6 | L4: 1) | N4: =E4*100 -> 40560 | Q4: cm | U4: 1) | W4: =ROUND(RAND()*(900-(0.1))+(0.1),1) -> 59.6 | AD4: 1) | AF4: =W4*100 -> 5960 | AI4: cm | AM4: 1) | AO4: =ROUND(RAND()*(900-(0.1))+(0.1),1) -> 508.5 | AV4: 1) | AX4: =AO4*100 -> 50850 | BA4: cm
C6: kilometres to metres | U6: kilometres to metres | AM6: kilometres to metres
C7: 2) | D7: =ROUND(RAND()*(30-(11))+(11),1) -> 23.9 | L7: 2) | N7: =D7*1000 -> 23900 | Q7: m | U7: 2) | V7: =ROUND(RAND()*(30-(11))+(11),1) -> 21.5 | AD7: 2) | AF7: =V7*1000 -> 21500 | AI7: m | AM7: 2) | AN7: =ROUND(RAND()*(30-(11))+(11),1) -> 15.9 | AV7: 2) | AX7: =AN7*1000 -> 15900 | BA7: m
C9: centimetres to metres | U9: centimetres to metres | AM9: centimetres to metres
C10: 3) | D10: =ROUND(RAND()*(90-(2))+(2),0)*10 -> 710 | L10: 3) | N10: =D10/100 -> 7.1 | Q10: m | U10: 3) | V10: =ROUND(RAND()*(90-(2))+(2),0)*10 -> 790 | AD10: 3) | AF10: =V10/100 -> 7.9 | AI10: m | AM10: 3) | AN10: =ROUND(RAND()*(90-(2))+(2),0)*10 -> 770 | AV10: 3) | AX10: =AN10/100 -> 7.7 | BA10: m
C12: metres to kilometres | U12: metres to kilometres | AM12: metres to kilometres
C13: 4) | D13: =ROUND(RAND()*(900-(2))+(2),0)*10 -> 5080 | L13: 4) | N13: =D13/1000 -> 5.08 | Q13: km | U13: 4) | V13: =ROUND(RAND()*(900-(2))+(2),0)*10 -> 4060 | AD13: 4) | AF13: =V13/1000 -> 4.06 | AI13: km | AM13: 4) | AN13: =ROUND(RAND()*(900-(2))+(2),0)*10 -> 3620 | AV13: 4) | AX13: =AN13/1000 -> 3.62 | BA13: km
C15: millimetres to metres | U15: millimetres to metres | AM15: millimetres to metres
C16: 5) | D16: =ROUND(RAND()*(900-(2))+(2),0)*10 -> 3860 | L16: 5) | N16: =D16/1000 -> 3.86 | Q16: m | U16: 5) | V16: =ROUND(RAND()*(900-(2))+(2),0)*10 -> 2130 | AD16: 5) | AF16: =V16/1000 -> 2.13 | AI16: m | AM16: 5) | AN16: =ROUND(RAND()*(900-(2))+(2),0)*10 -> 210 | AV16: 5) | AX16: =AN16/1000 -> 0.21 | BA16: m
C18: metres to millimetres | U18: metres to millimetres | AM18: metres to millimetres
C19: 6) | D19: =ROUND(RAND()*(20-(1))+(1),1) -> 9.1 | L19: 6) | N19: =D19*1000 -> 9100 | Q19: mm | U19: 6) | V19: =ROUND(RAND()*(20-(1))+(1),1) -> 14.5 | AD19: 6) | AF19: =V19*1000 -> 14500 | AI19: mm | AM19: 6) | AN19: =ROUND(RAND()*(20-(1))+(1),1) -> 14.9 | AV19: 6) | AX19: =AN19*1000 -> 14900 | BA19: mm
C23: Conversions 4 | L23: Conversions 4 | U23: Conversions 5 | AD23: Conversions 5 | AM23: Conversions 6 | AV23: Conversions 6
C24: metres to centimetres | U24: metres to centimetres | AM24: metres to centimetres
C25: 1) | E25: =ROUND(RAND()*(900-(0.1))+(0.1),1) -> 105.6 | L25: 1) | N25: =E25*100 -> 10560 | Q25: cm | U25: 1) | W25: =ROUND(RAND()*(900-(0.1))+(0.1),1) -> 184.4 | AD25: 1) | AF25: =W25*100 -> 18440 | AI25: cm | AM25: 1) | AO25: =ROUND(RAND()*(900-(0.1))+(0.1),1) -> 102.9 | AV25: 1) | AX25: =AO25*100 -> 10290 | BA25: cm
C27: kilometres to metres | U27: kilometres to metres | AM27: kilometres to metres
C28: 2) | D28: =ROUND(RAND()*(30-(11))+(11),1) -> 20.4 | L28: 2) | N28: =D28*1000 -> 20400 | Q28: m | U28: 2) | V28: =ROUND(RAND()*(30-(11))+(11),1) -> 15.1 | AD28: 2) | AF28: =V28*1000 -> 15100 | AI28: m | AM28: 2) | AN28: =ROUND(RAND()*(30-(11))+(11),1) -> 11.9 | AV28: 2) | AX28: =AN28*1000 -> 11900 | BA28: m
C30: centimetres to metres | U30: centimetres to metres | AM30: centimetres to metres
C31: 3) | D31: =ROUND(RAND()*(90-(2))+(2),0)*10 -> 510 | L31: 3) | N31: =D31/100 -> 5.1 | Q31: m | U31: 3) | V31: =ROUND(RAND()*(90-(2))+(2),0)*10 -> 60 | AD31: 3) | AF31: =V31/100 -> 0.6 | AI31: m | AM31: 3) | AN31: =ROUND(RAND()*(90-(2))+(2),0)*10 -> 370 | AV31: 3) | AX31: =AN31/100 -> 3.7 | BA31: m
C33: metres to kilometres | U33: metres to kilometres | AM33: metres to kilometres
C34: 4) | D34: =ROUND(RAND()*(900-(2))+(2),0)*10 -> 3640 | L34: 4) | N34: =D34/1000 -> 3.64 | Q34: km | U34: 4) | V34: =ROUND(RAND()*(900-(2))+(2),0)*10 -> 8480 | AD34: 4) | AF34: =V34/1000 -> 8.48 | AI34: km | AM34: 4) | AN34: =ROUND(RAND()*(900-(2))+(2),0)*10 -> 6050 | AV34: 4) | AX34: =AN34/1000 -> 6.05 | BA34: km
C36: millimetres to metres | U36: millimetres to metres | AM36: millimetres to metres
C37: 5) | D37: =ROUND(RAND()*(900-(2))+(2),0)*10 -> 8910 | L37: 5) | N37: =D37/1000 -> 8.91 | Q37: m | U37: 5) | V37: =ROUND(RAND()*(900-(2))+(2),0)*10 -> 2470 | AD37: 5) | AF37: =V37/1000 -> 2.47 | AI37: m | AM37: 5) | AN37: =ROUND(RAND()*(900-(2))+(2),0)*10 -> 980 | AV37: 5) | AX37: =AN37/1000 -> 0.98 | BA37: m
C39: metres to millimetres | U39: metres to millimetres | AM39: metres to millimetres
C40: 6) | D40: =ROUND(RAND()*(20-(1))+(1),1) -> 18.4 | L40: 6) | N40: =D40*1000 -> 18400 | Q40: mm | U40: 6) | V40: =ROUND(RAND()*(20-(1))+(1),1) -> 16.6 | AD40: 6) | AF40: =V40*1000 -> 16600 | AI40: mm | AM40: 6) | AN40: =ROUND(RAND()*(20-(1))+(1),1) -> 4.8 | AV40: 6) | AX40: =AN40*1000 -> 4800 | BA40: mm

Sheet Perimeter
C2: Perimeter 1 | L2: Perimeter 1 | U2: Perimeter 2 | AD2: Perimeter 2 | AM2: Perimeter 3 | AV2: Perimeter 3
C3: ="1) A rectangle has a length of "&J3&" cm and breadth "&J4&" cm. Find the perimeter." -> 1) A rectangle has a length of 26 cm and breadth 4 cm. Find the perimeter. | J3: =ROUND(RAND()*(30-15)+15,0) -> 26 | U3: ="1) A rectangle has a length of "&AB3&" cm and breadth "&AB4&" cm. Find the perimeter." -> 1) A rectangle has a length of 18 cm and breadth 9 cm. Find the perimeter. | AB3: =ROUND(RAND()*(30-15)+15,0) -> 18 | AM3: ="1) A rectangle has a length of "&AT3&" cm and breadth "&AT4&" cm. Find the perimeter." -> 1) A rectangle has a length of 21 cm and breadth 12 cm. Find the perimeter. | AT3: =ROUND(RAND()*(30-15)+15,0) -> 21
J4: =ROUND(RAND()*(14-3)+3,0) -> 4 | L4: 1) | N4: =2*J3+2*J4 -> 60 | Q4: cm | AB4: =ROUND(RAND()*(14-3)+3,0) -> 9 | AD4: 1) | AF4: =2*AB3+2*AB4 -> 54 | AI4: cm | AT4: =ROUND(RAND()*(14-3)+3,0) -> 12 | AV4: 1) | AX4: =2*AT3+2*AT4 -> 66 | BA4: cm
C6: ="2) A rectangle has a length of "&J6&" m and breadth "&J7&" m. Calculate the perimeter." -> 2) A rectangle has a length of 11.6 m and breadth 5.4 m. Calculate the perimeter. | J6: =ROUND(RAND()*(15-9)+9,1) -> 11.6 | U6: ="2) A rectangle has a length of "&AB6&" m and breadth "&AB7&" m. Calculate the perimeter." -> 2) A rectangle has a length of 14.6 m and breadth 7.3 m. Calculate the perimeter. | AB6: =ROUND(RAND()*(15-9)+9,1) -> 14.6 | AM6: ="2) A rectangle has a length of "&AT6&" m and breadth "&AT7&" m. Calculate the perimeter." -> 2) A rectangle has a length of 13.8 m and breadth 4.2 m. Calculate the perimeter. | AT6: =ROUND(RAND()*(15-9)+9,1) -> 13.8
J7: =ROUND(RAND()*(8-4)+4,1) -> 5.4 | L7: 2) | N7: =2*J6+2*J7 -> 34 | Q7: m | AB7: =ROUND(RAND()*(8-4)+4,1) -> 7.3 | AD7: 2) | AF7: =2*AB6+2*AB7 -> 43.8 | AI7: m | AT7: =ROUND(RAND()*(8-4)+4,1) -> 4.2 | AV7: 2) | AX7: =2*AT6+2*AT7 -> 36 | BA7: m
C9: ="3) A rectangle has a perimeter of "&J12&" cm. The length of the rectangle is "&J11&" cm. Evaluate the breadth of the rectangle." -> 3) A rectangle has a perimeter of 30 cm. The length of the rectangle is 10 cm. Evaluate the breadth of the rectangle. | U9: ="3) A rectangle has a perimeter of "&AB12&" cm. The length of the rectangle is "&AB11&" cm. Evaluate the breadth of the rectangle." -> 3) A rectangle has a perimeter of 32 cm. The length of the rectangle is 14 cm. Evaluate the breadth of the rectangle. | AM9: ="3) A rectangle has a perimeter of "&AT12&" cm. The length of the rectangle is "&AT11&" cm. Evaluate the breadth of the rectangle." -> 3) A rectangle has a perimeter of 42 cm. The length of the rectangle is 15 cm. Evaluate the breadth of the rectangle.
J10: =ROUND(RAND()*(8-2)+2,0) -> 5 | AB10: =ROUND(RAND()*(8-2)+2,0) -> 2 | AT10: =ROUND(RAND()*(8-2)+2,0) -> 6
J11: =ROUND(RAND()*(15-9)+9,0) -> 10 | L11: 3) | N11: =J10 -> 5 | Q11: cm | AB11: =ROUND(RAND()*(15-9)+9,0) -> 14 | AD11: 3) | AF11: =AB10 -> 2 | AI11: cm | AT11: =ROUND(RAND()*(15-9)+9,0) -> 15 | AV11: 3) | AX11: =AT10 -> 6 | BA11: cm
J12: =2*J11+2*J10 -> 30 | AB12: =2*AB11+2*AB10 -> 32 | AT12: =2*AT11+2*AT10 -> 42
C14: ="4) A square has a length of "&J14&" m. Calculate the perimeter." -> 4) A square has a length of 10.3 m. Calculate the perimeter. | J14: =ROUND(RAND()*(15-9)+9,1) -> 10.3 | U14: ="4) A square has a length of "&AB14&" m. Calculate the perimeter." -> 4) A square has a length of 13.2 m. Calculate the perimeter. | AB14: =ROUND(RAND()*(15-9)+9,1) -> 13.2 | AM14: ="4) A square has a length of "&AT14&" m. Calculate the perimeter." -> 4) A square has a length of 14.6 m. Calculate the perimeter. | AT14: =ROUND(RAND()*(15-9)+9,1) -> 14.6
L15: 4) | N15: =4*J14 -> 41.2 | Q15: m | AD15: 4) | AF15: =4*AB14 -> 52.8 | AI15: m | AV15: 4) | AX15: =4*AT14 -> 58.4 | BA15: m
C17: ="5) A rectangle has a perimeter of "&J20&" cm. The breadth of the rectangle is "&J18&" cm. Evaluate the length of the rectangle." -> 5) A rectangle has a perimeter of 39.4 cm. The breadth of the rectangle is 7.6 cm. Evaluate the length of the rectangle. | U17: ="5) A rectangle has a perimeter of "&AB20&" cm. The breadth of the rectangle is "&AB18&" cm. Evaluate the length of the rectangle." -> 5) A rectangle has a perimeter of 27.6 cm. The breadth of the rectangle is 2.9 cm. Evaluate the length of the rectangle. | AM17: ="5) A rectangle has a perimeter of "&AT20&" cm. The breadth of the rectangle is "&AT18&" cm. Evaluate the length of the rectangle." -> 5) A rectangle has a perimeter of 36.2 cm. The breadth of the rectangle is 7.3 cm. Evaluate the length of the rectangle.
J18: =ROUND(RAND()*(8-2)+2,1) -> 7.6 | AB18: =ROUND(RAND()*(8-2)+2,1) -> 2.9 | AT18: =ROUND(RAND()*(8-2)+2,1) -> 7.3
J19: =ROUND(RAND()*(15-9)+9,1) -> 12.1 | L19: 5) | N19: =J19 -> 12.1 | Q19: cm | AB19: =ROUND(RAND()*(15-9)+9,1) -> 10.9 | AD19: 5) | AF19: =AB19 -> 10.9 | AI19: cm | AT19: =ROUND(RAND()*(15-9)+9,1) -> 10.8 | AV19: 5) | AX19: =AT19 -> 10.8 | BA19: cm
J20: =2*J19+2*J18 -> 39.4 | AB20: =2*AB19+2*AB18 -> 27.6 | AT20: =2*AT19+2*AT18 -> 36.2
C24: Perimeter 4 | L24: Perimeter 4 | U24: Perimeter 5 | AD24: Perimeter 5 | AM24: Perimeter 6 | AV24: Perimeter 6
C25: ="1) A rectangle has a length of "&J25&" cm and breadth "&J26&" cm. Find the perimeter." -> 1) A rectangle has a length of 30 cm and breadth 14 cm. Find the perimeter. | J25: =ROUND(RAND()*(30-15)+15,0) -> 30 | U25: ="1) A rectangle has a length of "&AB25&" cm and breadth "&AB26&" cm. Find the perimeter." -> 1) A rectangle has a length of 20 cm and breadth 6 cm. Find the perimeter. | AB25: =ROUND(RAND()*(30-15)+15,0) -> 20 | AM25: ="1) A rectangle has a length of "&AT25&" cm and breadth "&AT26&" cm. Find the perimeter." -> 1) A rectangle has a length of 22 cm and breadth 6 cm. Find the perimeter. | AT25: =ROUND(RAND()*(30-15)+15,0) -> 22
J26: =ROUND(RAND()*(14-3)+3,0) -> 14 | L26: 1) | N26: =2*J25+2*J26 -> 88 | Q26: cm | AB26: =ROUND(RAND()*(14-3)+3,0) -> 6 | AD26: 1) | AF26: =2*AB25+2*AB26 -> 52 | AI26: cm | AT26: =ROUND(RAND()*(14-3)+3,0) -> 6 | AV26: 1) | AX26: =2*AT25+2*AT26 -> 56 | BA26: cm
C28: ="2) A rectangle has a length of "&J28&" m and breadth "&J29&" m. Calculate the perimeter." -> 2) A rectangle has a length of 12.8 m and breadth 6.9 m. Calculate the perimeter. | J28: =ROUND(RAND()*(15-9)+9,1) -> 12.8 | U28: ="2) A rectangle has a length of "&AB28&" m and breadth "&AB29&" m. Calculate the perimeter." -> 2) A rectangle has a length of 13.1 m and breadth 7.3 m. Calculate the perimeter. | AB28: =ROUND(RAND()*(15-9)+9,1) -> 13.1 | AM28: ="2) A rectangle has a length of "&AT28&" m and breadth "&AT29&" m. Calculate the perimeter." -> 2) A rectangle has a length of 12.5 m and breadth 4.1 m. Calculate the perimeter. | AT28: =ROUND(RAND()*(15-9)+9,1) -> 12.5
J29: =ROUND(RAND()*(8-4)+4,1) -> 6.9 | L29: 2) | N29: =2*J28+2*J29 -> 39.4 | Q29: m | AB29: =ROUND(RAND()*(8-4)+4,1) -> 7.3 | AD29: 2) | AF29: =2*AB28+2*AB29 -> 40.8 | AI29: m | AT29: =ROUND(RAND()*(8-4)+4,1) -> 4.1 | AV29: 2) | AX29: =2*AT28+2*AT29 -> 33.2 | BA29: m
C31: ="3) A rectangle has a perimeter of "&J34&" cm. The length of the rectangle is "&J33&" cm. Evaluate the breadth of the rectangle." -> 3) A rectangle has a perimeter of 34 cm. The length of the rectangle is 13 cm. Evaluate the breadth of the rectangle. | U31: ="3) A rectangle has a perimeter of "&AB34&" cm. The length of the rectangle is "&AB33&" cm. Evaluate the breadth of the rectangle." -> 3) A rectangle has a perimeter of 36 cm. The length of the rectangle is 14 cm. Evaluate the breadth of the rectangle. | AM31: ="3) A rectangle has a perimeter of "&AT34&" cm. The length of the rectangle is "&AT33&" cm. Evaluate the breadth of the rectangle." -> 3) A rectangle has a perimeter of 38 cm. The length of the rectangle is 13 cm. Evaluate the breadth of the rectangle.
J32: =ROUND(RAND()*(8-2)+2,0) -> 4 | AB32: =ROUND(RAND()*(8-2)+2,0) -> 4 | AT32: =ROUND(RAND()*(8-2)+2,0) -> 6
J33: =ROUND(RAND()*(15-9)+9,0) -> 13 | L33: 3) | N33: =J32 -> 4 | Q33: cm | AB33: =ROUND(RAND()*(15-9)+9,0) -> 14 | AD33: 3) | AF33: =AB32 -> 4 | AI33: cm | AT33: =ROUND(RAND()*(15-9)+9,0) -> 13 | AV33: 3) | AX33: =AT32 -> 6 | BA33: cm
J34: =2*J33+2*J32 -> 34 | AB34: =2*AB33+2*AB32 -> 36 | AT34: =2*AT33+2*AT32 -> 38
C36: ="4) A square has a length of "&J36&" m. Calculate the perimeter." -> 4) A square has a length of 9.6 m. Calculate the perimeter. | J36: =ROUND(RAND()*(15-9)+9,1) -> 9.6 | U36: ="4) A square has a length of "&AB36&" m. Calculate the perimeter." -> 4) A square has a length of 12.5 m. Calculate the perimeter. | AB36: =ROUND(RAND()*(15-9)+9,1) -> 12.5 | AM36: ="4) A square has a length of "&AT36&" m. Calculate the perimeter." -> 4) A square has a length of 13 m. Calculate the perimeter. | AT36: =ROUND(RAND()*(15-9)+9,1) -> 13
L37: 4) | N37: =4*J36 -> 38.4 | Q37: m | AD37: 4) | AF37: =4*AB36 -> 50 | AI37: m | AV37: 4) | AX37: =4*AT36 -> 52 | BA37: m
C39: ="5) A rectangle has a perimeter of "&J42&" cm. The breadth of the rectangle is "&J40&" cm. Evaluate the length of the rectangle." -> 5) A rectangle has a perimeter of 40 cm. The breadth of the rectangle is 6.4 cm. Evaluate the length of the rectangle. | U39: ="5) A rectangle has a perimeter of "&AB42&" cm. The breadth of the rectangle is "&AB40&" cm. Evaluate the length of the rectangle." -> 5) A rectangle has a perimeter of 33.6 cm. The breadth of the rectangle is 2.1 cm. Evaluate the length of the rectangle. | AM39: ="5) A rectangle has a perimeter of "&AT42&" cm. The breadth of the rectangle is "&AT40&" cm. Evaluate the length of the rectangle." -> 5) A rectangle has a perimeter of 41.4 cm. The breadth of the rectangle is 5.8 cm. Evaluate the length of the rectangle.
J40: =ROUND(RAND()*(8-2)+2,1) -> 6.4 | AB40: =ROUND(RAND()*(8-2)+2,1) -> 2.1 | AT40: =ROUND(RAND()*(8-2)+2,1) -> 5.8
J41: =ROUND(RAND()*(15-9)+9,1) -> 13.6 | L41: 5) | N41: =J41 -> 13.6 | Q41: cm | AB41: =ROUND(RAND()*(15-9)+9,1) -> 14.7 | AD41: 5) | AF41: =AB41 -> 14.7 | AI41: cm | AT41: =ROUND(RAND()*(15-9)+9,1) -> 14.9 | AV41: 5) | AX41: =AT41 -> 14.9 | BA41: cm
J42: =2*J41+2*J40 -> 40 | AB42: =2*AB41+2*AB40 -> 33.6 | AT42: =2*AT41+2*AT40 -> 41.4

Sheet Area
C2: Area 1 | L2: Area 1 | U2: Area 2 | AD2: Area 2 | AM2: Area 3 | AV2: Area 3
C3: ="1) A rectangle has a length of "&J3&" cm and breadth "&J4&" cm. Find the area." -> 1) A rectangle has a length of 26 cm and breadth 6 cm. Find the area. | J3: =ROUND(RAND()*(30-15)+15,0) -> 26 | U3: ="1) A rectangle has a length of "&AB3&" cm and breadth "&AB4&" cm. Find the area." -> 1) A rectangle has a length of 28 cm and breadth 11 cm. Find the area. | AB3: =ROUND(RAND()*(30-15)+15,0) -> 28 | AM3: ="1) A rectangle has a length of "&AT3&" cm and breadth "&AT4&" cm. Find the area." -> 1) A rectangle has a length of 26 cm and breadth 10 cm. Find the area. | AT3: =ROUND(RAND()*(30-15)+15,0) -> 26
J4: =ROUND(RAND()*(14-3)+3,0) -> 6 | L4: 1) | N4: =J3*J4 -> 156 | Q4: cm2 | AB4: =ROUND(RAND()*(14-3)+3,0) -> 11 | AD4: 1) | AF4: =AB3*AB4 -> 308 | AI4: cm2 | AT4: =ROUND(RAND()*(14-3)+3,0) -> 10 | AV4: 1) | AX4: =AT3*AT4 -> 260 | BA4: cm2
C6: ="2) A rectangle has a length of "&J6&" m and breadth "&J7&" m. Calculate the area." -> 2) A rectangle has a length of 40 m and breadth 10.4 m. Calculate the area. | J6: =ROUND(RAND()*(9-2)+2,0)*10 -> 40 | U6: ="2) A rectangle has a length of "&AB6&" m and breadth "&AB7&" m. Calculate the area." -> 2) A rectangle has a length of 70 m and breadth 15.8 m. Calculate the area. | AB6: =ROUND(RAND()*(9-2)+2,0)*10 -> 70 | AM6: ="2) A rectangle has a length of "&AT6&" m and breadth "&AT7&" m. Calculate the area." -> 2) A rectangle has a length of 70 m and breadth 15.7 m. Calculate the area. | AT6: =ROUND(RAND()*(9-2)+2,0)*10 -> 70
J7: =ROUND(RAND()*(18-6)+6,1) -> 10.4 | L7: 2) | N7: =J6*J7 -> 416 | Q7: m2 | AB7: =ROUND(RAND()*(18-6)+6,1) -> 15.8 | AD7: 2) | AF7: =AB6*AB7 -> 1106 | AI7: m2 | AT7: =ROUND(RAND()*(18-6)+6,1) -> 15.7 | AV7: 2) | AX7: =AT6*AT7 -> 1099 | BA7: m2
C9: ="3) A rectangle has a area of "&J12&" square centimetres. The length of the rectangle is "&J11&" cm. Evaluate the breadth of the rectangle." -> 3) A rectangle has a area of 98 square centimetres. The length of the rectangle is 14 cm. Evaluate the breadth of the rectangle. | U9: ="3) A rectangle has a area of "&AB12&" square centimetres. The length of the rectangle is "&AB11&" cm. Evaluate the breadth of the rectangle." -> 3) A rectangle has a area of 30 square centimetres. The length of the rectangle is 15 cm. Evaluate the breadth of the rectangle. | AM9: ="3) A rectangle has a area of "&AT12&" square centimetres. The length of the rectangle is "&AT11&" cm. Evaluate the breadth of the rectangle." -> 3) A rectangle has a area of 54 square centimetres. The length of the rectangle is 9 cm. Evaluate the breadth of the rectangle.
J10: =ROUND(RAND()*(8-2)+2,0) -> 7 | AB10: =ROUND(RAND()*(8-2)+2,0) -> 2 | AT10: =ROUND(RAND()*(8-2)+2,0) -> 6
J11: =ROUND(RAND()*(15-9)+9,0) -> 14 | L11: 3) | N11: =J10 -> 7 | Q11: cm | AB11: =ROUND(RAND()*(15-9)+9,0) -> 15 | AD11: 3) | AF11: =AB10 -> 2 | AI11: cm | AT11: =ROUND(RAND()*(15-9)+9,0) -> 9 | AV11: 3) | AX11: =AT10 -> 6 | BA11: cm
J12: =J11*J10 -> 98 | AB12: =AB11*AB10 -> 30 | AT12: =AT11*AT10 -> 54
C14: ="4) A square has a length of "&J14&" m. Calculate the area." -> 4) A square has a length of 10 m. Calculate the area. | J14: =ROUND(RAND()*(12-3)+3,0) -> 10 | U14: ="4) A square has a length of "&AB14&" m. Calculate the area." -> 4) A square has a length of 9 m. Calculate the area. | AB14: =ROUND(RAND()*(12-3)+3,0) -> 9 | AM14: ="4) A square has a length of "&AT14&" m. Calculate the area." -> 4) A square has a length of 4 m. Calculate the area. | AT14: =ROUND(RAND()*(12-3)+3,0) -> 4
L15: 4) | N15: =J14*J14 -> 100 | Q15: m2 | AD15: 4) | AF15: =AB14*AB14 -> 81 | AI15: m2 | AV15: 4) | AX15: =AT14*AT14 -> 16 | BA15: m2
C17: ="5) The length of the base of a traingle is "&J19&" cm. The height is "&J18&" cm. Calculate the area of the triangle." -> 5) The length of the base of a traingle is 27 cm. The height is 20 cm. Calculate the area of the triangle. | U17: ="5) The length of the base of a traingle is "&AB19&" cm. The height is "&AB18&" cm. Calculate the area of the triangle." -> 5) The length of the base of a traingle is 21 cm. The height is 12 cm. Calculate the area of the triangle. | AM17: ="5) The length of the base of a traingle is "&AT19&" cm. The height is "&AT18&" cm. Calculate the area of the triangle." -> 5) The length of the base of a traingle is 14 cm. The height is 6 cm. Calculate the area of the triangle.
J18: =ROUND(RAND()*(10-1)+1,0)*2 -> 20 | AB18: =ROUND(RAND()*(10-1)+1,0)*2 -> 12 | AT18: =ROUND(RAND()*(10-1)+1,0)*2 -> 6
J19: =ROUND(RAND()*(40-6)+6,0) -> 27 | L19: 5) | N19: =J20 -> 270 | Q19: cm2 | AB19: =ROUND(RAND()*(40-6)+6,0) -> 21 | AD19: 5) | AF19: =AB20 -> 126 | AI19: cm2 | AT19: =ROUND(RAND()*(40-6)+6,0) -> 14 | AV19: 5) | AX19: =AT20 -> 42 | BA19: cm2
J20: =0.5*J19*J18 -> 270 | AB20: =0.5*AB19*AB18 -> 126 | AT20: =0.5*AT19*AT18 -> 42
C24: Area 4 | L24: Area 4 | U24: Area 5 | AD24: Area 5 | AM24: Area 6 | AV24: Area 6
C25: ="1) A rectangle has a length of "&J25&" cm and breadth "&J26&" cm. Find the area." -> 1) A rectangle has a length of 30 cm and breadth 7 cm. Find the area. | J25: =ROUND(RAND()*(30-15)+15,0) -> 30 | U25: ="1) A rectangle has a length of "&AB25&" cm and breadth "&AB26&" cm. Find the area." -> 1) A rectangle has a length of 17 cm and breadth 3 cm. Find the area. | AB25: =ROUND(RAND()*(30-15)+15,0) -> 17 | AM25: ="1) A rectangle has a length of "&AT25&" cm and breadth "&AT26&" cm. Find the area." -> 1) A rectangle has a length of 29 cm and breadth 5 cm. Find the area. | AT25: =ROUND(RAND()*(30-15)+15,0) -> 29
J26: =ROUND(RAND()*(14-3)+3,0) -> 7 | L26: 1) | N26: =J25*J26 -> 210 | Q26: cm2 | AB26: =ROUND(RAND()*(14-3)+3,0) -> 3 | AD26: 1) | AF26: =AB25*AB26 -> 51 | AI26: cm2 | AT26: =ROUND(RAND()*(14-3)+3,0) -> 5 | AV26: 1) | AX26: =AT25*AT26 -> 145 | BA26: cm2
C28: ="2) A rectangle has a length of "&J28&" m and breadth "&J29&" m. Calculate the area." -> 2) A rectangle has a length of 60 m and breadth 17.1 m. Calculate the area. | J28: =ROUND(RAND()*(9-2)+2,0)*10 -> 60 | U28: ="2) A rectangle has a length of "&AB28&" m and breadth "&AB29&" m. Calculate the area." -> 2) A rectangle has a length of 70 m and breadth 16 m. Calculate the area. | AB28: =ROUND(RAND()*(9-2)+2,0)*10 -> 70 | AM28: ="2) A rectangle has a length of "&AT28&" m and breadth "&AT29&" m. Calculate the area." -> 2) A rectangle has a length of 40 m and breadth 11.2 m. Calculate the area. | AT28: =ROUND(RAND()*(9-2)+2,0)*10 -> 40
J29: =ROUND(RAND()*(18-6)+6,1) -> 17.1 | L29: 2) | N29: =J28*J29 -> 1026 | Q29: m2 | AB29: =ROUND(RAND()*(18-6)+6,1) -> 16 | AD29: 2) | AF29: =AB28*AB29 -> 1120 | AI29: m2 | AT29: =ROUND(RAND()*(18-6)+6,1) -> 11.2 | AV29: 2) | AX29: =AT28*AT29 -> 448 | BA29: m2
C31: ="3) A rectangle has a area of "&J34&" square centimetres. The length of the rectangle is "&J33&" cm. Evaluate the breadth of the rectangle." -> 3) A rectangle has a area of 45 square centimetres. The length of the rectangle is 15 cm. Evaluate the breadth of the rectangle. | U31: ="3) A rectangle has a area of "&AB34&" square centimetres. The length of the rectangle is "&AB33&" cm. Evaluate the breadth of the rectangle." -> 3) A rectangle has a area of 40 square centimetres. The length of the rectangle is 10 cm. Evaluate the breadth of the rectangle. | AM31: ="3) A rectangle has a area of "&AT34&" square centimetres. The length of the rectangle is "&AT33&" cm. Evaluate the breadth of the rectangle." -> 3) A rectangle has a area of 36 square centimetres. The length of the rectangle is 12 cm. Evaluate the breadth of the rectangle.
J32: =ROUND(RAND()*(8-2)+2,0) -> 3 | AB32: =ROUND(RAND()*(8-2)+2,0) -> 4 | AT32: =ROUND(RAND()*(8-2)+2,0) -> 3
J33: =ROUND(RAND()*(15-9)+9,0) -> 15 | L33: 3) | N33: =J32 -> 3 | Q33: cm | AB33: =ROUND(RAND()*(15-9)+9,0) -> 10 | AD33: 3) | AF33: =AB32 -> 4 | AI33: cm | AT33: =ROUND(RAND()*(15-9)+9,0) -> 12 | AV33: 3) | AX33: =AT32 -> 3 | BA33: cm
J34: =J33*J32 -> 45 | AB34: =AB33*AB32 -> 40 | AT34: =AT33*AT32 -> 36
C36: ="4) A square has a length of "&J36&" m. Calculate the area." -> 4) A square has a length of 7 m. Calculate the area. | J36: =ROUND(RAND()*(12-3)+3,0) -> 7 | U36: ="4) A square has a length of "&AB36&" m. Calculate the area." -> 4) A square has a length of 6 m. Calculate the area. | AB36: =ROUND(RAND()*(12-3)+3,0) -> 6 | AM36: ="4) A square has a length of "&AT36&" m. Calculate the area." -> 4) A square has a length of 10 m. Calculate the area. | AT36: =ROUND(RAND()*(12-3)+3,0) -> 10
L37: 4) | N37: =J36*J36 -> 49 | Q37: m2 | AD37: 4) | AF37: =AB36*AB36 -> 36 | AI37: m2 | AV37: 4) | AX37: =AT36*AT36 -> 100 | BA37: m2
C39: ="5) The length of the base of a traingle is "&J41&" cm. The height is "&J40&" cm. Calculate the area of the triangle." -> 5) The length of the base of a traingle is 20 cm. The height is 10 cm. Calculate the area of the triangle. | U39: ="5) The length of the base of a traingle is "&AB41&" cm. The height is "&AB40&" cm. Calculate the area of the triangle." -> 5) The length of the base of a traingle is 29 cm. The height is 2 cm. Calculate the area of the triangle. | AM39: ="5) The length of the base of a traingle is "&AT41&" cm. The height is "&AT40&" cm. Calculate the area of the triangle." -> 5) The length of the base of a traingle is 40 cm. The height is 4 cm. Calculate the area of the triangle.
J40: =ROUND(RAND()*(10-1)+1,0)*2 -> 10 | AB40: =ROUND(RAND()*(10-1)+1,0)*2 -> 2 | AT40: =ROUND(RAND()*(10-1)+1,0)*2 -> 4
J41: =ROUND(RAND()*(40-6)+6,0) -> 20 | L41: 5) | N41: =J42 -> 100 | Q41: cm2 | AB41: =ROUND(RAND()*(40-6)+6,0) -> 29 | AD41: 5) | AF41: =AB42 -> 29 | AI41: cm2 | AT41: =ROUND(RAND()*(40-6)+6,0) -> 40 | AV41: 5) | AX41: =AT42 -> 80 | BA41: cm2
J42: =0.5*J41*J40 -> 100 | AB42: =0.5*AB41*AB40 -> 29 | AT42: =0.5*AT41*AT40 -> 80

Sheet Scales
C2: Area 1 | L2: Area 1 | U2: Area 2 | AD2: Area 2 | AM2: Area 3 | AV2: Area 3
C3: ="1) A rectangle has a length of "&J3&" cm and breadth "&J4&" cm. Find the area." -> 1) A rectangle has a length of 26 cm and breadth 6 cm. Find the area. | J3: =ROUND(RAND()*(30-15)+15,0) -> 26 | U3: ="1) A rectangle has a length of "&AB3&" cm and breadth "&AB4&" cm. Find the area." -> 1) A rectangle has a length of 28 cm and breadth 11 cm. Find the area. | AB3: =ROUND(RAND()*(30-15)+15,0) -> 28 | AM3: ="1) A rectangle has a length of "&AT3&" cm and breadth "&AT4&" cm. Find the area." -> 1) A rectangle has a length of 26 cm and breadth 10 cm. Find the area. | AT3: =ROUND(RAND()*(30-15)+15,0) -> 26
J4: =ROUND(RAND()*(14-3)+3,0) -> 6 | L4: 1) | N4: =J3*J4 -> 156 | Q4: cm2 | AB4: =ROUND(RAND()*(14-3)+3,0) -> 11 | AD4: 1) | AF4: =AB3*AB4 -> 308 | AI4: cm2 | AT4: =ROUND(RAND()*(14-3)+3,0) -> 10 | AV4: 1) | AX4: =AT3*AT4 -> 260 | BA4: cm2
C6: ="2) A rectangle has a length of "&J6&" m and breadth "&J7&" m. Calculate the area." -> 2) A rectangle has a length of 40 m and breadth 10.4 m. Calculate the area. | J6: =ROUND(RAND()*(9-2)+2,0)*10 -> 40 | U6: ="2) A rectangle has a length of "&AB6&" m and breadth "&AB7&" m. Calculate the area." -> 2) A rectangle has a length of 70 m and breadth 15.8 m. Calculate the area. | AB6: =ROUND(RAND()*(9-2)+2,0)*10 -> 70 | AM6: ="2) A rectangle has a length of "&AT6&" m and breadth "&AT7&" m. Calculate the area." -> 2) A rectangle has a length of 70 m and breadth 15.7 m. Calculate the area. | AT6: =ROUND(RAND()*(9-2)+2,0)*10 -> 70
J7: =ROUND(RAND()*(18-6)+6,1) -> 10.4 | L7: 2) | N7: =J6*J7 -> 416 | Q7: m2 | AB7: =ROUND(RAND()*(18-6)+6,1) -> 15.8 | AD7: 2) | AF7: =AB6*AB7 -> 1106 | AI7: m2 | AT7: =ROUND(RAND()*(18-6)+6,1) -> 15.7 | AV7: 2) | AX7: =AT6*AT7 -> 1099 | BA7: m2
C9: ="3) A rectangle has a area of "&J12&" square centimetres. The length of the rectangle is "&J11&" cm. Evaluate the breadth of the rectangle." -> 3) A rectangle has a area of 98 square centimetres. The length of the rectangle is 14 cm. Evaluate the breadth of the rectangle. | U9: ="3) A rectangle has a area of "&AB12&" square centimetres. The length of the rectangle is "&AB11&" cm. Evaluate the breadth of the rectangle." -> 3) A rectangle has a area of 30 square centimetres. The length of the rectangle is 15 cm. Evaluate the breadth of the rectangle. | AM9: ="3) A rectangle has a area of "&AT12&" square centimetres. The length of the rectangle is "&AT11&" cm. Evaluate the breadth of the rectangle." -> 3) A rectangle has a area of 54 square centimetres. The length of the rectangle is 9 cm. Evaluate the breadth of the rectangle.
J10: =ROUND(RAND()*(8-2)+2,0) -> 7 | AB10: =ROUND(RAND()*(8-2)+2,0) -> 2 | AT10: =ROUND(RAND()*(8-2)+2,0) -> 6
J11: =ROUND(RAND()*(15-9)+9,0) -> 14 | L11: 3) | N11: =J10 -> 7 | Q11: cm | AB11: =ROUND(RAND()*(15-9)+9,0) -> 15 | AD11: 3) | AF11: =AB10 -> 2 | AI11: cm | AT11: =ROUND(RAND()*(15-9)+9,0) -> 9 | AV11: 3) | AX11: =AT10 -> 6 | BA11: cm
J12: =J11*J10 -> 98 | AB12: =AB11*AB10 -> 30 | AT12: =AT11*AT10 -> 54
C14: ="4) A square has a length of "&J14&" m. Calculate the area." -> 4) A square has a length of 10 m. Calculate the area. | J14: =ROUND(RAND()*(12-3)+3,0) -> 10 | U14: ="4) A square has a length of "&AB14&" m. Calculate the area." -> 4) A square has a length of 9 m. Calculate the area. | AB14: =ROUND(RAND()*(12-3)+3,0) -> 9 | AM14: ="4) A square has a length of "&AT14&" m. Calculate the area." -> 4) A square has a length of 4 m. Calculate the area. | AT14: =ROUND(RAND()*(12-3)+3,0) -> 4
L15: 4) | N15: =J14*J14 -> 100 | Q15: m2 | AD15: 4) | AF15: =AB14*AB14 -> 81 | AI15: m2 | AV15: 4) | AX15: =AT14*AT14 -> 16 | BA15: m2
C17: ="5) The length of the base of a traingle is "&J19&" cm. The height is "&J18&" cm. Calculate the area of the triangle." -> 5) The length of the base of a traingle is 27 cm. The height is 20 cm. Calculate the area of the triangle. | U17: ="5) The length of the base of a traingle is "&AB19&" cm. The height is "&AB18&" cm. Calculate the area of the triangle." -> 5) The length of the base of a traingle is 21 cm. The height is 12 cm. Calculate the area of the triangle. | AM17: ="5) The length of the base of a traingle is "&AT19&" cm. The height is "&AT18&" cm. Calculate the area of the triangle." -> 5) The length of the base of a traingle is 14 cm. The height is 6 cm. Calculate the area of the triangle.
J18: =ROUND(RAND()*(10-1)+1,0)*2 -> 20 | AB18: =ROUND(RAND()*(10-1)+1,0)*2 -> 12 | AT18: =ROUND(RAND()*(10-1)+1,0)*2 -> 6
J19: =ROUND(RAND()*(40-6)+6,0) -> 27 | L19: 5) | N19: =J20 -> 270 | Q19: cm2 | AB19: =ROUND(RAND()*(40-6)+6,0) -> 21 | AD19: 5) | AF19: =AB20 -> 126 | AI19: cm2 | AT19: =ROUND(RAND()*(40-6)+6,0) -> 14 | AV19: 5) | AX19: =AT20 -> 42 | BA19: cm2
J20: =0.5*J19*J18 -> 270 | AB20: =0.5*AB19*AB18 -> 126 | AT20: =0.5*AT19*AT18 -> 42
C24: Area 4 | L24: Area 4 | U24: Area 5 | AD24: Area 5 | AM24: Area 6 | AV24: Area 6
C25: ="1) A rectangle has a length of "&J25&" cm and breadth "&J26&" cm. Find the area." -> 1) A rectangle has a length of 30 cm and breadth 7 cm. Find the area. | J25: =ROUND(RAND()*(30-15)+15,0) -> 30 | U25: ="1) A rectangle has a length of "&AB25&" cm and breadth "&AB26&" cm. Find the area." -> 1) A rectangle has a length of 17 cm and breadth 3 cm. Find the area. | AB25: =ROUND(RAND()*(30-15)+15,0) -> 17 | AM25: ="1) A rectangle has a length of "&AT25&" cm and breadth "&AT26&" cm. Find the area." -> 1) A rectangle has a length of 29 cm and breadth 5 cm. Find the area. | AT25: =ROUND(RAND()*(30-15)+15,0) -> 29
J26: =ROUND(RAND()*(14-3)+3,0) -> 7 | L26: 1) | N26: =J25*J26 -> 210 | Q26: cm2 | AB26: =ROUND(RAND()*(14-3)+3,0) -> 3 | AD26: 1) | AF26: =AB25*AB26 -> 51 | AI26: cm2 | AT26: =ROUND(RAND()*(14-3)+3,0) -> 5 | AV26: 1) | AX26: =AT25*AT26 -> 145 | BA26: cm2
C28: ="2) A rectangle has a length of "&J28&" m and breadth "&J29&" m. Calculate the area." -> 2) A rectangle has a length of 60 m and breadth 17.1 m. Calculate the area. | J28: =ROUND(RAND()*(9-2)+2,0)*10 -> 60 | U28: ="2) A rectangle has a length of "&AB28&" m and breadth "&AB29&" m. Calculate the area." -> 2) A rectangle has a length of 70 m and breadth 16 m. Calculate the area. | AB28: =ROUND(RAND()*(9-2)+2,0)*10 -> 70 | AM28: ="2) A rectangle has a length of "&AT28&" m and breadth "&AT29&" m. Calculate the area." -> 2) A rectangle has a length of 40 m and breadth 11.2 m. Calculate the area. | AT28: =ROUND(RAND()*(9-2)+2,0)*10 -> 40
J29: =ROUND(RAND()*(18-6)+6,1) -> 17.1 | L29: 2) | N29: =J28*J29 -> 1026 | Q29: m2 | AB29: =ROUND(RAND()*(18-6)+6,1) -> 16 | AD29: 2) | AF29: =AB28*AB29 -> 1120 | AI29: m2 | AT29: =ROUND(RAND()*(18-6)+6,1) -> 11.2 | AV29: 2) | AX29: =AT28*AT29 -> 448 | BA29: m2
C31: ="3) A rectangle has a area of "&J34&" square centimetres. The length of the rectangle is "&J33&" cm. Evaluate the breadth of the rectangle." -> 3) A rectangle has a area of 45 square centimetres. The length of the rectangle is 15 cm. Evaluate the breadth of the rectangle. | U31: ="3) A rectangle has a area of "&AB34&" square centimetres. The length of the rectangle is "&AB33&" cm. Evaluate the breadth of the rectangle." -> 3) A rectangle has a area of 40 square centimetres. The length of the rectangle is 10 cm. Evaluate the breadth of the rectangle. | AM31: ="3) A rectangle has a area of "&AT34&" square centimetres. The length of the rectangle is "&AT33&" cm. Evaluate the breadth of the rectangle." -> 3) A rectangle has a area of 36 square centimetres. The length of the rectangle is 12 cm. Evaluate the breadth of the rectangle.
J32: =ROUND(RAND()*(8-2)+2,0) -> 3 | AB32: =ROUND(RAND()*(8-2)+2,0) -> 4 | AT32: =ROUND(RAND()*(8-2)+2,0) -> 3
J33: =ROUND(RAND()*(15-9)+9,0) -> 15 | L33: 3) | N33: =J32 -> 3 | Q33: cm | AB33: =ROUND(RAND()*(15-9)+9,0) -> 10 | AD33: 3) | AF33: =AB32 -> 4 | AI33: cm | AT33: =ROUND(RAND()*(15-9)+9,0) -> 12 | AV33: 3) | AX33: =AT32 -> 3 | BA33: cm
J34: =J33*J32 -> 45 | AB34: =AB33*AB32 -> 40 | AT34: =AT33*AT32 -> 36
C36: ="4) A square has a length of "&J36&" m. Calculate the area." -> 4) A square has a length of 7 m. Calculate the area. | J36: =ROUND(RAND()*(12-3)+3,0) -> 7 | U36: ="4) A square has a length of "&AB36&" m. Calculate the area." -> 4) A square has a length of 6 m. Calculate the area. | AB36: =ROUND(RAND()*(12-3)+3,0) -> 6 | AM36: ="4) A square has a length of "&AT36&" m. Calculate the area." -> 4) A square has a length of 10 m. Calculate the area. | AT36: =ROUND(RAND()*(12-3)+3,0) -> 10
L37: 4) | N37: =J36*J36 -> 49 | Q37: m2 | AD37: 4) | AF37: =AB36*AB36 -> 36 | AI37: m2 | AV37: 4) | AX37: =AT36*AT36 -> 100 | BA37: m2
C39: ="5) The length of the base of a traingle is "&J41&" cm. The height is "&J40&" cm. Calculate the area of the triangle." -> 5) The length of the base of a traingle is 20 cm. The height is 10 cm. Calculate the area of the triangle. | U39: ="5) The length of the base of a traingle is "&AB41&" cm. The height is "&AB40&" cm. Calculate the area of the triangle." -> 5) The length of the base of a traingle is 29 cm. The height is 2 cm. Calculate the area of the triangle. | AM39: ="5) The length of the base of a traingle is "&AT41&" cm. The height is "&AT40&" cm. Calculate the area of the triangle." -> 5) The length of the base of a traingle is 40 cm. The height is 4 cm. Calculate the area of the triangle.
J40: =ROUND(RAND()*(10-1)+1,0)*2 -> 10 | AB40: =ROUND(RAND()*(10-1)+1,0)*2 -> 2 | AT40: =ROUND(RAND()*(10-1)+1,0)*2 -> 4
J41: =ROUND(RAND()*(40-6)+6,0) -> 20 | L41: 5) | N41: =J42 -> 100 | Q41: cm2 | AB41: =ROUND(RAND()*(40-6)+6,0) -> 29 | AD41: 5) | AF41: =AB42 -> 29 | AI41: cm2 | AT41: =ROUND(RAND()*(40-6)+6,0) -> 40 | AV41: 5) | AX41: =AT42 -> 80 | BA41: cm2
J42: =0.5*J41*J40 -> 100 | AB42: =0.5*AB41*AB40 -> 29 | AT42: =0.5*AT41*AT40 -> 80
